fUSD/lending_fUSD_20240425
["ID","MTS","AMOUNT","RATE_DAILY","PERIOD"]
[323487214,1714045853556,-402.0,0.00012837,2]
[323487215,1714045853566,-1474.0,0.00012837,2]
[323487216,1714045853575,-214.0,0.00012837,2]
[323487217,1714045853584,-443.0,0.00012837,2]
[323487218,1714045853594,-1641.0,0.00012837,2]
[323487219,1714045853603,-150.318,0.00012837,2]
[323487220,1714045853612,-1140.0,0.00012837,2]
[323487221,1714045853622,-37696.0,0.00012837,2]
[323487222,1714045853631,-2795.898,0.00012837,2]
[323487223,1714045853642,-150.0,0.00012837,2]
[323487224,1714045853652,-5730.0,0.00012837,2]
[323487225,1714045853662,-5894.0,0.00012837,2]
[323487226,1714045853671,-150.0,0.00012837,2]
[323487227,1714045853681,-904.493,0.00012837,2]
[323487228,1714045853691,-150.0,0.00012837,2]
[323487229,1714045853700,-150.0,0.00012837,2]
[323487230,1714045853710,-150.0,0.00012837,2]
[323487231,1714045853719,-150.0,0.00012837,2]
[323487232,1714045853729,-152.0,0.00012839,4]
[323487233,1714045853738,-1500.0,0.00012844,2]
[323487234,1714045853748,-150.0,0.00012867,2]
[323487235,1714045853758,-4583.44785109,0.00012883,2]
[323487236,1714045853767,-3345.3783025,0.00012884,2]
[323487237,1714045853776,-1740.7011015,0.00012884,2]
[323487238,1714045853786,-2339.5279562,0.00012887,2]
[323487239,1714045853796,-1037.2540448,0.00012887,2]
[323487240,1714045853806,-338.6486765,0.00012887,2]
[323487241,1714045853816,-2344.464894,0.00012887,2]
[323487242,1714045853825,-15044.2558383,0.00012887,2]
[323487243,1714045853835,-288.1261236,0.00012887,2]
[323487244,1714045853845,-500.0,0.0001289,2]
[323487245,1714045853854,-2909.6759436,0.00012891,2]
[323487246,1714045853864,-2034.8276333,0.00012891,2]
[323487247,1714045853874,-1513.9920398,0.00012891,2]
[323487248,1714045853883,-950.3378956,0.00012891,2]
[323487249,1714045853895,-310.2717913,0.00012891,2]
[323487250,1714045853904,-2148.0117092,0.00012891,2]
[323487251,1714045853914,-13783.6304479,0.00012891,2]
[323487252,1714045853923,-263.9827488,0.00012891,2]
[323487253,1714045853933,-495.16486114,0.00012896,2]
[323487254,1714045853943,-5847.20324844,0.00012896,2]
[323487255,1714045853952,-207.22680324,0.00012896,2]
[323487256,1714045853963,-193.37977299,0.00012897,2]
[323487257,1714045853973,-155.0,0.00012897,2]
[323487258,1714045853983,-256.42676022,0.00012897,2]
[323487259,1714045853993,-166.94364196,0.00012897,2]
[323487260,1714045854002,-155.20446592,0.00012897,2]
[323487261,1714045854012,-156.3850435,0.00012897,2]
[323487262,1714045854021,-161.05110816,0.00012897,2]
[323487263,1714045854031,-155.5181689,0.00012897,2]
[323487264,1714045854041,-1932.59443536,0.00012897,2]
[323487265,1714045854050,-155.32647726,0.00012897,2]
[323487266,1714045854060,-353.31653569,0.00012897,2]
[323487267,1714045854069,-265.99527827,0.00012897,2]
[323487268,1714045854079,-1047.21365535,0.00012897,2]
[323487269,1714045854089,-155.0,0.00012897,2]
[323487270,1714045854099,-155.0,0.00012897,2]
[323487271,1714045854108,-157.042519,0.00012897,2]
[323487272,1714045854118,-157.042519,0.00012897,2]
[323487273,1714045854128,-157.042519,0.00012897,2]
[323487274,1714045854137,-157.042519,0.00012897,2]
[323487275,1714045854147,-157.042519,0.00012897,2]
[323487276,1714045854157,-571.01966468,0.00012897,7]
[323487277,1714045854167,-157.042519,0.00012897,2]
[323487278,1714045854176,-173.042519,0.00012897,2]
[323487279,1714045854185,-2326.28329204,0.00012898,2]
[323487280,1714045854195,-1242.2292,0.00012898,2]
[323487281,1714045854205,-221.80597407,0.00012898,2]
[323487282,1714045854214,-155.45241063,0.00012898,2]
[323487283,1714045854224,-155.10308265,0.00012898,2]
[323487284,1714045854234,-155.17839332,0.00012898,2]
[323487285,1714045854243,-155.0,0.00012898,2]
[323487286,1714045854253,-157.042519,0.00012898,2]
[323487287,1714045854263,-157.042519,0.00012898,2]
[323487288,1714045854272,-157.042519,0.00012898,2]
[323487289,1714045854282,-157.042519,0.00012898,2]
[323487290,1714045854291,-157.042519,0.00012898,2]
[323487291,1714045854301,-157.042519,0.00012898,2]
[323487292,1714045854311,-157.042519,0.00012898,2]
[323487293,1714045854320,-151.0,0.00012898,2]
[323487294,1714045854329,-151.0,0.00012898,2]
[323487295,1714045854339,-500.0,0.00012898,2]
[323487296,1714045854348,-500.0,0.00012898,2]
[323487297,1714045854358,-500.0,0.00012898,2]
[323487298,1714045854367,-176.22856803,0.00012898,2]
[323487299,1714045854377,-819694.59595612,0.00012899,2]
[323487300,1714045854387,-3025.98779486,0.00012899,2]
[323487301,1714045854396,-151.0,0.00012899,2]
[323487302,1714045854406,-151.0,0.00012899,2]
[323487303,1714045854416,-151.0,0.00012899,2]
[323487304,1714045854426,-220.278332,0.00012899,2]
[323487305,1714045854435,-628.7,0.00012899,2]
[323487306,1714045854445,-1299390.39427853,0.000129,5]
[323487307,1714045854493,-2900.0,0.000129,5]
[323487308,1714045854504,-272207.73947385,0.000129,5]
[323487309,1714045854564,-1545.88121157,0.000129,5]
[323487310,1714045854579,-866.57163133,0.000129,5]
[323487311,1714045854590,-717.37624184,0.000129,5]
[323487312,1714045854602,-830.47490483,0.000129,5]
[323487313,1714045854622,-96789.33624704,0.000129,5]
[323487314,1714045854749,-150.0,0.00012837,2]
[323487315,1714045854758,-6958.87137147,0.000129,5]
[323487316,1714045854797,-0.00127519,0.000129,5]
[323487317,1714045854810,-33432.09478405,0.000129,5]
[323487318,1714045854829,-307.5131988,0.000129,5]
[323487319,1714045854840,-656.35,0.000129,5]
[323487320,1714045855125,-569.639827,0.00011986,2]
[323487321,1714045855135,-226.62621933,0.00011986,2]
[323487322,1714045855144,-500.0,0.00011987,2]
[323487323,1714045855154,-10000.0,0.00012256,2]
[323487324,1714045855164,-500.0,0.00012261,2]
[323487325,1714045855174,-4455.93261915,0.00012361,2]
[323487326,1714045855183,-2269.208668,0.00012477,2]
[323487327,1714045855193,-349.54082894,0.00012477,2]
[323487328,1714045855202,-311.99643668,0.00012477,2]
[323487329,1714045855211,-500.0,0.00012535,2]
[323487330,1714045855221,-150.0,0.00012837,2]
[323487331,1714045855230,-208457.08617054,0.000129,5]
[323487332,1714045855241,-319.50316463,0.000129,5]
[323487333,1714045855261,-2800.27684168,0.000129,5]
[323487334,1714045855272,-6561.23247747,0.000129,5]
[323487335,1714045855284,-1744.40678836,0.000129,5]
[323487336,1714045855295,-2819.04696,0.000129,5]
[323487337,1714045855307,-2663.9034345,0.000129,5]
[323487338,1714045855319,-1504.0,0.000129,5]
[323487339,1714045855330,-4796.72682749,0.000129,5]
[323487340,1714045855341,-719.84129831,0.000129,5]
[323487341,1714045855352,-1873.43214159,0.000129,5]
[323487342,1714045855364,-6416.35003881,0.000129,5]
[323487343,1714045855376,-7527.34457584,0.000129,5]
[323487344,1714045855387,-10000.0,0.000129,5]
[323487345,1714045855398,-371.88291753,0.000129,5]
[323487346,1714045855415,-1324.8,0.000129,5]
[323487349,1714046031034,187.2,9.41e-05,2]
[323487379,1714046522862,177.84,9.138e-05,2]
[323487385,1714046684066,7029.45932536,9.138e-05,2]
[323487386,1714046957154,-155.0,9.137e-05,2]
[323487387,1714046957173,-236.80231061,9.137e-05,2]
[323487388,1714046957195,-1777.02433335,9.137e-05,2]
[323487389,1714046957217,-1618.28865604,9.138e-05,2]
[323487390,1714046970096,-3387.84458594,9.138e-05,2]
[323487395,1714047032147,-1411.54365452,0.00010999,2]
[323487401,1714047032212,-365.48067883,0.00010999,2]
[323487402,1714047032222,-343.44243652,0.00011,2]
[323487403,1714047032236,-232.07,0.00011032,2]
[323487404,1714047032246,-146.93790431,0.00011041,2]
[323487405,1714047032259,-26.80209569,0.00011041,2]
[323487406,1714047032268,-374.18,0.00011056,2]
[323487407,1714047032278,-189.06,0.00011058,2]
[323487408,1714047032287,-200.0,0.00011137,2]
[323487409,1714047032296,-177.84,0.00011402,2]
[323487410,1714047032306,-166.21,0.0001141,2]
[323487411,1714047032316,-988.9306,0.00011615,2]
[323487412,1714047032325,-395.9848,0.00011615,2]
[323487413,1714047032334,-19879.9236,0.00011615,2]
[323487414,1714047032343,-500.0,0.00011615,2]
[323487415,1714047032353,-499.99,0.00011615,2]
[323487416,1714047032363,-252.3484,0.00011799,2]
[323487417,1714047032372,-19235.96978934,0.000118,5]
[323487418,1714047032381,-317.83371883,0.00011885,2]
[323487419,1714047032390,-171.03103542,0.00011885,2]
[323487420,1714047032400,-10000.0,0.00011888,2]
[323487421,1714047032409,-208.84592778,0.0001189,2]
[323487422,1714047032418,-2179.73737234,0.00011897,2]
[323487423,1714047032427,-155.25951618,0.00011897,2]
[323487424,1714047032437,-2321.74176097,0.00011897,2]
[323487425,1714047032446,-1060.80176792,0.00011897,2]
[323487426,1714047032455,-155.0,0.00011897,2]
[323487427,1714047032465,-692.69076029,0.00011897,2]
[323487428,1714047032476,-203.13773057,0.00011897,2]
[323487429,1714047032487,-309.11414191,0.00011897,2]
[323487430,1714047032497,-167.74934623,0.00011897,2]
[323487431,1714047032507,-500.0,0.00011898,2]
[323487432,1714047032516,-449.58099828,0.00011898,2]
[323487433,1714047032525,-500.0,0.00011898,2]
[323487434,1714047032534,-500.0,0.00011898,2]
[323487435,1714047032544,-2577.16,0.00011898,2]
[323487436,1714047032553,-500.0,0.00011898,2]
[323487437,1714047032562,-500.0,0.00011898,2]
[323487438,1714047032571,-500.0,0.00011898,2]
[323487439,1714047032581,-1800.51,0.00011898,2]
[323487440,1714047032590,-500.0,0.00011898,2]
[323487441,1714047032600,-623.63,0.00011898,2]
[323487442,1714047032609,-500.0,0.00011898,2]
[323487443,1714047032618,-500.0,0.00011898,2]
[323487444,1714047032627,-3005.25810355,0.00011898,2]
[323487445,1714047032639,-1004.02797844,0.00011898,2]
[323487446,1714047032651,-295.30391801,0.00011898,2]
[323487447,1714047032660,-223.70697722,0.00011898,2]
[323487448,1714047032672,-387.75302278,0.00011898,2]
[323487449,1714047032681,-1029.93,0.00011898,2]
[323487450,1714047032690,-382.99697722,0.00011898,2]
[323487451,1714047032705,-117.00302278,0.00011898,2]
[323487452,1714047032714,-317.33434333,0.00011898,2]
[323487453,1714047032734,-182.66565667,0.00011898,2]
[323487454,1714047032743,-500.0,0.00011898,2]
[323487455,1714047032752,-500.0,0.00011898,2]
[323487456,1714047032762,-500.0,0.00011898,2]
[323487457,1714047032772,-10278.35,0.00011898,2]
[323487458,1714047032781,-500.0,0.00011898,2]
[323487459,1714047032790,-500.0,0.00011898,2]
[323487460,1714047032799,-2376.62,0.00011898,2]
[323487461,1714047032808,-500.0,0.00011898,2]
[323487462,1714047032817,-500.0,0.00011898,2]
[323487463,1714047032826,-500.0,0.00011898,2]
[323487464,1714047032835,-4022.26,0.00011898,2]
[323487465,1714047032844,-500.0,0.00011898,2]
[323487466,1714047032853,-500.0,0.00011898,2]
[323487467,1714047032862,-4277.92,0.00011898,2]
[323487468,1714047032871,-1413.01,0.00011898,2]
[323487469,1714047032880,-500.0,0.00011898,2]
[323487470,1714047032890,-500.0,0.00011898,2]
[323487471,1714047032899,-1599.68,0.00011898,2]
[323487472,1714047032908,-2548.1,0.00011898,2]
[323487473,1714047032917,-500.0,0.00011898,2]
[323487474,1714047032926,-500.0,0.00011898,2]
[323487475,1714047032935,-500.0,0.00011898,2]
[323487476,1714047032944,-500.0,0.00011898,2]
[323487477,1714047032953,-571.43,0.00011898,2]
[323487478,1714047032962,-500.0,0.00011898,2]
[323487479,1714047032971,-500.0,0.00011898,2]
[323487480,1714047032980,-500.0,0.00011898,2]
[323487481,1714047032992,-500.0,0.00011898,2]
[323487482,1714047033001,-15680.37,0.00011898,2]
[323487483,1714047033010,-500.0,0.00011898,2]
[323487484,1714047033020,-5249.74,0.00011898,2]
[323487485,1714047033029,-1528.45,0.00011898,2]
[323487486,1714047033038,-500.0,0.00011898,2]
[323487487,1714047033047,-500.0,0.00011898,2]
[323487488,1714047033056,-1181.11,0.00011898,2]
[323487489,1714047033065,-500.0,0.00011898,2]
[323487490,1714047033074,-500.0,0.00011898,2]
[323487491,1714047033084,-928.84187792,0.00011899,2]
[323487492,1714047033093,-500.0,0.00011899,2]
[323487493,1714047033102,-500.0,0.00011899,2]
[323487494,1714047033111,-500.0,0.00011899,2]
[323487495,1714047033120,-59.13607198,0.00011899,2]
[323487496,1714047033132,-440.86392802,0.00011899,2]
[323487497,1714047033141,-500.0,0.00011899,2]
[323487498,1714047033151,-500.0,0.00011899,2]
[323487499,1714047033160,-500.0,0.00011899,2]
[323487500,1714047033169,-500.0,0.00011899,2]
[323487501,1714047033179,-500.0,0.00011899,2]
[323487502,1714047033188,-350.88607198,0.00011899,2]
[323487503,1714047033200,-149.11392802,0.00011899,2]
[323487504,1714047033209,-500.0,0.00011899,2]
[323487505,1714047033218,-500.0,0.00011899,2]
[323487506,1714047033233,-500.0,0.00011899,2]
[323487507,1714047033243,-500.0,0.00011899,2]
[323487508,1714047033252,-96.32187262,0.00011899,2]
[323487509,1714047033264,-403.67812738,0.00011899,2]
[323487510,1714047033274,-500.0,0.00011899,2]
[323487511,1714047033285,-496.32187262,0.00011899,2]
[323487512,1714047033297,-3.67812738,0.00011899,2]
[323487513,1714047033307,-342.40411062,0.00011899,2]
[323487514,1714047033320,-157.59588938,0.00011899,2]
[323487515,1714047033329,-486.88831867,0.00011899,2]
[323487516,1714047033338,-44.81820603,0.00011899,2]
[323487517,1714047033350,-455.18179397,0.00011899,2]
[323487518,1714047033359,-215.27633232,0.00011899,2]
[323487519,1714047033370,-284.72366768,0.00011899,2]
[323487520,1714047033379,-412.05064834,0.00011899,2]
[323487521,1714047033391,-87.94935166,0.00011899,2]
[323487522,1714047033400,-267.57064875,0.00011899,2]
[323487523,1714047033412,-232.42935125,0.00011899,2]
[323487524,1714047033421,-53.75257147,0.00011899,2]
[323487525,1714047033437,-387.51100691,0.00011899,2]
[323487526,1714047038198,-500.0,0.00011898,2]
[323487527,1714047038208,-477.69249947,0.00011898,2]
[323487528,1714047038310,-22.30750053,0.00011898,2]
[323487529,1714047038321,-500.0,0.00011898,2]
[323487530,1714047038330,-58.73642162,0.00011899,2]
[323487531,1714047038340,-500.0,0.00011899,2]
[323487532,1714047038349,-500.0,0.00011899,2]
[323487533,1714047038359,-160.75485385,0.00011899,2]
[323487534,1714047038371,-339.24514615,0.00011899,2]
[323487535,1714047038381,-500.0,0.00011899,2]
[323487536,1714047038391,-500.0,0.00011899,2]
[323487537,1714047038401,-500.0,0.00011899,2]
[323487538,1714047038411,-377.38730864,0.00011899,2]
[323487539,1714047038422,-500.0,0.00011899,2]
[323487540,1714047038432,-500.0,0.00011899,2]
[323487541,1714047038442,-500.0,0.00011899,2]
[323487542,1714047038452,-500.0,0.00011899,2]
[323487543,1714047038462,-500.0,0.00011899,2]
[323487544,1714047038471,-500.0,0.00011899,2]
[323487545,1714047038481,-500.0,0.00011899,2]
[323487546,1714047038493,-500.0,0.00011899,2]
[323487547,1714047038502,-500.0,0.00011899,2]
[323487548,1714047038512,-500.0,0.00011899,2]
[323487549,1714047038522,-500.0,0.00011899,2]
[323487550,1714047038531,-500.0,0.00011899,2]
[323487551,1714047038541,-500.0,0.00011899,2]
[323487552,1714047038550,-500.0,0.00011899,2]
[323487553,1714047038559,-500.0,0.00011899,2]
[323487554,1714047038569,-500.0,0.00011899,2]
[323487555,1714047038578,-377.38797634,0.00011899,2]
[323487556,1714047038587,-500.0,0.00011899,2]
[323487557,1714047038597,-500.0,0.00011899,2]
[323487559,1714047038606,-500.0,0.00011899,2]
[323487561,1714047038616,-500.0,0.00011899,2]
[323487563,1714047038625,-500.0,0.00011899,2]
[323487565,1714047038635,-500.0,0.00011899,2]
[323487566,1714047038644,-280.97900624,0.00011899,2]
[323487567,1714047038675,-219.02099376,0.00011899,2]
[323487568,1714047038684,-363.52574218,0.00011899,2]
[323487569,1714047038694,-394.19202152,0.00011899,2]
[323487570,1714047038705,-500.0,0.00011899,2]
[323487571,1714047038714,-500.0,0.00011899,2]
[323487572,1714047038724,-500.0,0.00011899,2]
[323487573,1714047038733,-500.0,0.00011899,2]
[323487574,1714047038748,-500.0,0.00011899,2]
[323487575,1714047038757,-500.0,0.00011899,2]
[323487576,1714047038766,-500.0,0.00011899,2]
[323487577,1714047038776,-500.0,0.00011899,2]
[323487578,1714047038785,-500.0,0.00011899,2]
[323487579,1714047038794,-508.75639164,0.00011899,2]
[323487580,1714047038803,-500.0,0.00011899,2]
[323487581,1714047038813,-508.38147202,0.00011899,2]
[323487582,1714047038822,-500.0,0.00011899,2]
[323487583,1714047038833,-500.0,0.00011899,2]
[323487584,1714047038843,-500.0,0.00011899,2]
[323487585,1714047038852,-500.0,0.00011899,2]
[323487586,1714047038861,-500.0,0.00011899,2]
[323487587,1714047038871,-502.05923926,0.00011899,2]
[323487588,1714047038880,-500.0,0.00011899,2]
[323487589,1714047038889,-500.0,0.00011899,2]
[323487590,1714047038899,-500.0,0.00011899,2]
[323487591,1714047038908,-500.0,0.00011899,2]
[323487592,1714047038917,-500.0,0.00011899,2]
[323487593,1714047038926,-525.91609066,0.00011899,2]
[323487594,1714047038935,-506.29239089,0.00011899,2]
[323487595,1714047038944,-302.51513972,0.00011899,2]
[323487596,1714047039166,-525.00532628,0.00011899,2]
[323487597,1714047039176,-150.0,0.00011899,2]
[323487598,1714047039185,-500.0,0.00011899,2]
[323487599,1714047039194,-553.06936926,0.00011899,2]
[323487600,1714047039204,-500.0,0.00011899,2]
[323487601,1714047039213,-500.0,0.00011899,2]
[323487602,1714047039225,-500.0,0.00011899,2]
[323487603,1714047039234,-519.24692221,0.00011899,2]
[323487604,1714047039245,-500.0,0.00011899,2]
[323487605,1714047039255,-500.0,0.00011899,2]
[323487606,1714047039265,-500.0,0.00011899,2]
[323487607,1714047039275,-500.0,0.00011899,2]
[323487608,1714047039285,-500.0,0.00011899,2]
[323487609,1714047039295,-502.06113389,0.00011899,2]
[323487610,1714047039306,-500.0,0.00011899,2]
[323487611,1714047039316,-174.4393648,0.00011899,2]
[323487612,1714047039326,-500.0,0.00011899,2]
[323487613,1714047039335,-530.90379613,0.00011899,2]
[323487614,1714047039345,-500.0,0.00011899,2]
[323487615,1714047039354,-175.31783392,0.00011899,2]
[323487616,1714047039364,-500.0,0.00011899,2]
[323487617,1714047039373,-500.0,0.00011899,2]
[323487618,1714047039383,-500.0,0.00011899,2]
[323487619,1714047039393,-526.06727544,0.00011899,2]
[323487620,1714047039402,-500.0,0.00011899,2]
[323487621,1714047039411,-501.6670218,0.00011899,2]
[323487622,1714047039421,-500.0,0.00011899,2]
[323487623,1714047039431,-509.59832112,0.00011899,2]
[323487624,1714047039441,-506.74884986,0.00011899,2]
[323487625,1714047039450,-500.0,0.00011899,2]
[323487626,1714047039460,-500.0,0.00011899,2]
[323487627,1714047039469,-500.0,0.00011899,2]
[323487628,1714047039479,-559.5264426,0.00011899,2]
[323487629,1714047039488,-500.0,0.00011899,2]
[323487630,1714047039499,-502.05778128,0.00011899,2]
[323487631,1714047039509,-500.0,0.00011899,2]
[323487632,1714047039518,-500.0,0.00011899,2]
[323487633,1714047039528,-500.0,0.00011899,2]
[323487634,1714047039537,-500.0,0.00011899,2]
[323487635,1714047039546,-500.0,0.00011899,2]
[323487636,1714047039555,-500.0,0.00011899,2]
[323487637,1714047039564,-520.65557546,0.00011899,2]
[323487638,1714047039573,-500.0,0.00011899,2]
[323487639,1714047039582,-500.0,0.00011899,2]
[323487640,1714047039591,-500.0,0.00011899,2]
[323487641,1714047039600,-500.0,0.00011899,2]
[323487642,1714047039609,-571.58284344,0.00011899,2]
[323487643,1714047039618,-500.0,0.00011899,2]
[323487644,1714047039626,-500.0,0.00011899,2]
[323487645,1714047039636,-500.0,0.00011899,2]
[323487646,1714047039645,-500.0,0.00011899,2]
[323487647,1714047039655,-500.0,0.00011899,2]
[323487648,1714047039664,-500.0,0.00011899,2]
[323487649,1714047039674,-500.0,0.00011899,2]
[323487650,1714047039683,-504.48129969,0.00011899,2]
[323487651,1714047039692,-500.0,0.00011899,2]
[323487652,1714047039701,-500.0,0.00011899,2]
[323487653,1714047039711,-500.0,0.00011899,2]
[323487654,1714047039722,-500.0,0.00011899,2]
[323487655,1714047039731,-500.0,0.00011899,2]
[323487656,1714047039742,-500.0,0.00011899,2]
[323487657,1714047039752,-500.0,0.00011899,2]
[323487658,1714047039761,-514.75422803,0.00011899,2]
[323487659,1714047039770,-503.40038112,0.00011899,2]
[323487660,1714047039779,-501.66544123,0.00011899,2]
[323487661,1714047039788,-500.0,0.00011899,2]
[323487662,1714047039797,-500.0,0.00011899,2]
[323487663,1714047039807,-317.26327462,0.00011899,2]
[323487664,1714047039816,-578.7334475,0.00011899,2]
[323487665,1714047039825,-500.0,0.00011899,2]
[323487666,1714047039835,-500.0,0.00011899,2]
[323487667,1714047039845,-564.51089894,0.00011899,2]
[323487668,1714047039887,-527.70438339,0.00011899,2]
[323487669,1714047039896,-500.0,0.00011899,2]
[323487670,1714047039905,-499.27549529,0.00011899,2]
[323487671,1714047039914,-505.67968737,0.00011899,2]
[323487672,1714047039923,-501.1578786,0.00011899,2]
[323487673,1714047039934,-500.0,0.00011899,2]
[323487674,1714047039943,-517.71749136,0.00011899,2]
[323487676,1714047039952,-500.0,0.00011899,2]
[323487677,1714047039962,-489.30627906,0.00011899,2]
[323487678,1714047039971,-500.0,0.00011899,2]
[323487679,1714047039980,-500.0,0.00011899,2]
[323487680,1714047039991,-500.0,0.00011899,2]
[323487682,1714047040000,-478.32118223,0.00011899,2]
[323487683,1714047040009,-500.0,0.00011899,2]
[323487684,1714047040018,-500.0,0.00011899,2]
[323487685,1714047040027,-500.0,0.00011899,2]
[323487686,1714047040036,-180.35401806,0.00011899,2]
[323487687,1714047040046,-500.0,0.00011899,2]
[323487689,1714047040055,-500.0,0.00011899,2]
[323487691,1714047040064,-500.0,0.00011899,2]
[323487692,1714047040074,-500.0,0.00011899,2]
[323487693,1714047040084,-500.0,0.00011899,2]
[323487694,1714047040094,-500.29748924,0.00011899,2]
[323487695,1714047040103,-500.0,0.00011899,2]
[323487696,1714047040113,-500.0,0.00011899,2]
[323487697,1714047040122,-501.01367022,0.00011899,2]
[323487698,1714047040132,-318.32960938,0.00011899,2]
[323487699,1714047040142,-503.18073118,0.00011899,2]
[323487700,1714047040151,-500.0,0.00011899,2]
[323487701,1714047040160,-500.64091805,0.00011899,2]
[323487702,1714047040171,-648.6350162,0.00011899,2]
[323487703,1714047040181,-500.0,0.00011899,2]
[323487704,1714047040190,-500.0,0.00011899,2]
[323487705,1714047040201,-502.01349116,0.00011899,2]
[323487706,1714047040210,-500.0,0.00011899,2]
[323487707,1714047040220,-505.11537152,0.00011899,2]
[323487709,1714047040230,-501.19074427,0.00011899,2]
[323487711,1714047040241,-500.0,0.00011899,2]
[323487713,1714047040251,-507.60062284,0.00011899,2]
[323487715,1714047040260,-500.0,0.00011899,2]
[323487717,1714047040272,-500.0,0.00011899,2]
[323487719,1714047040281,-235.3749755,0.00011899,2]
[323487721,1714047040290,-500.0,0.00011899,2]
[323487723,1714047040299,-500.0,0.00011899,2]
[323487725,1714047040310,-529.96706659,0.00011899,2]
[323487727,1714047040319,-500.0,0.00011899,2]
[323487729,1714047040328,-500.0,0.00011899,2]
[323487731,1714047040337,-500.0,0.00011899,2]
[323487733,1714047040347,-500.0,0.00011899,2]
[323487735,1714047040356,-500.0,0.00011899,2]
[323487737,1714047040365,-505.49344306,0.00011899,2]
[323487739,1714047040374,-580.14669754,0.00011899,2]
[323487741,1714047040384,-500.0,0.00011899,2]
[323487742,1714047040393,-500.0,0.00011899,2]
[323487744,1714047040403,-500.0,0.00011899,2]
[323487746,1714047040412,-822.72,0.00011899,2]
[323487748,1714047040422,-504.49335913,0.00011899,2]
[323487750,1714047040431,-500.0,0.00011899,2]
[323487752,1714047040441,-500.0,0.00011899,2]
[323487754,1714047040450,-1200.65,0.00011899,2]
[323487757,1714047040463,-500.0,0.00011899,2]
[323487759,1714047040472,-500.0,0.00011899,2]
[323487761,1714047040481,-500.0,0.00011899,2]
[323487763,1714047040492,-500.0,0.00011899,2]
[323487765,1714047040501,-500.0,0.00011899,2]
[323487767,1714047040510,-641.09750437,0.00011899,2]
[323487769,1714047040519,-500.0,0.00011899,2]
[323487771,1714047040528,-500.0,0.00011899,2]
[323487772,1714047040538,-500.0,0.00011899,2]
[323487774,1714047040548,-500.0,0.00011899,2]
[323487776,1714047040557,-506.65730338,0.00011899,2]
[323487778,1714047040566,-500.0,0.00011899,2]
[323487780,1714047040575,-501.33957179,0.00011899,2]
[323487782,1714047040585,-500.0,0.00011899,2]
[323487785,1714047040597,-500.0,0.00011899,2]
[323487787,1714047040606,-1492.13,0.00011899,2]
[323487789,1714047040615,-500.0,0.00011899,2]
[323487790,1714047040624,-504.19323945,0.00011899,2]
[323487792,1714047040633,-686.85,0.00011899,2]
[323487794,1714047040643,-500.0,0.00011899,2]
[323487796,1714047040652,-412.42427579,0.00011899,2]
[323487798,1714047040661,-500.0,0.00011899,2]
[323487800,1714047040670,-500.0,0.00011899,2]
[323487802,1714047040680,-500.0,0.00011899,2]
[323487804,1714047040689,-500.0,0.00011899,2]
[323487806,1714047040698,-500.0,0.00011899,2]
[323487808,1714047040708,-220.43917174,0.00011899,2]
[323487810,1714047040717,-500.0,0.00011899,2]
[323487812,1714047040727,-388.55946281,0.00011899,2]
[323487815,1714047040736,-509.28625678,0.00011899,2]
[323487817,1714047040748,-500.0,0.00011899,2]
[323487819,1714047040758,-500.0,0.00011899,2]
[323487822,1714047040768,-500.0,0.00011899,2]
[323487824,1714047040777,-500.0,0.00011899,2]
[323487827,1714047040786,-500.0,0.00011899,2]